[Event "*** Titled Tuesday Blitz"]
[Site "Chess.com"]
[Date "2020.10.27"]
[Round "10"]
[White "ASVZ"]
[Black "gilbert_gm"]
[Result "0-1"]
[WhiteElo "2465"]
[BlackElo "2584"]
[TimeControl "180+1"]
[EndTime "11:53:25 PDT"]
[Termination "gilbert_gm won by resignation"]

1. e4 {[%clk 0:03:00.9]} 1... c6 {[%clk 0:02:57.5]} 2. d4 {[%clk 0:03:00]} 2...
d5 {[%clk 0:02:58.4]} 3. e5 {[%clk 0:03:00.6]} 3... Bf5 {[%clk 0:02:57.5]} 4.
Nf3 {[%clk 0:02:59.9]} 4... e6 {[%clk 0:02:57.4]} 5. Be2 {[%clk 0:03:00]} 5...
Nd7 {[%clk 0:02:57.1]} 6. a3 {[%clk 0:03:00.2]} 6... Ne7 {[%clk 0:02:54.4]} 7.
b4 {[%clk 0:03:00.5]} 7... a5 {[%clk 0:02:47.7]} 8. b5 {[%clk 0:03:01]} 8... Nc8
{[%clk 0:02:39.3]} 9. O-O {[%clk 0:02:57.3]} 9... Be7 {[%clk 0:02:39]} 10. a4
{[%clk 0:02:55.9]} 10... O-O {[%clk 0:02:36]} 11. Ba3 {[%clk 0:02:55.1]} 11...
c5 {[%clk 0:02:32.2]} 12. c4 {[%clk 0:02:54.7]} 12... dxc4 {[%clk 0:02:26.5]}
13. d5 {[%clk 0:02:48.3]} 13... exd5 {[%clk 0:02:23.1]} 14. Qxd5 {[%clk
0:02:49.2]} 14... Qc7 {[%clk 0:02:12.6]} 15. Qxc4 {[%clk 0:02:44.4]} 15... Nxe5
{[%clk 0:02:00]} 16. Nxe5 {[%clk 0:02:11.5]} 16... Qxe5 {[%clk 0:02:00.9]} 17.
Ra2 {[%clk 0:02:12]} 17... Be6 {[%clk 0:01:48.6]} 18. Qc3 {[%clk 0:02:12.4]}
18... Qxc3 {[%clk 0:01:45.5]} 19. Nxc3 {[%clk 0:02:13.3]} 19... Bxa2 {[%clk
0:01:44.4]} 20. Nxa2 {[%clk 0:02:14.2]} 20... Nb6 {[%clk 0:01:41.7]} 21. Nc3
{[%clk 0:02:14.6]} 21... Rfe8 {[%clk 0:01:34.8]} 22. Bf3 {[%clk 0:02:14.8]}
22... c4 {[%clk 0:01:32.2]} 23. Bb2 {[%clk 0:02:06.9]} 23... Rab8 {[%clk
0:01:23.3]} 24. Rd1 {[%clk 0:02:05.3]} 24... Bf6 {[%clk 0:01:17.3]} 25. h4
{[%clk 0:02:04.6]} 25... h6 {[%clk 0:01:06]} 26. Rd6 {[%clk 0:02:03.6]} 26...
Re1+ {[%clk 0:01:00.4]} 27. Kh2 {[%clk 0:01:58.3]} 27... Be5+ {[%clk 0:01:01.3]}
28. Kh3 {[%clk 0:01:58.5]} 28... Bxd6 {[%clk 0:01:01.4]} 0-1

[Event "*** Titled Tuesday Blitz"]
[Site "Chess.com"]
[Date "2020.10.27"]
[Round "10"]
[White "indfraeng"]
[Black "northridgehawk"]
[Result "0-1"]
[WhiteElo "2341"]
[BlackElo "2273"]
[TimeControl "180+1"]
[EndTime "11:53:42 PDT"]
[Termination "northridgehawk won by checkmate"]

1. d4 {[%clk 0:03:00.9]} 1... Nf6 {[%clk 0:02:46]} 2. c4 {[%clk 0:03:00.4]} 2...
g6 {[%clk 0:02:46.5]} 3. g3 {[%clk 0:03:01]} 3... Bg7 {[%clk 0:02:46.1]} 4. Bg2
{[%clk 0:03:01.6]} 4... d5 {[%clk 0:02:46.9]} 5. cxd5 {[%clk 0:03:01.3]} 5...
Nxd5 {[%clk 0:02:47.8]} 6. Nf3 {[%clk 0:03:01.2]} 6... O-O {[%clk 0:02:45.5]} 7.
O-O {[%clk 0:03:01.5]} 7... Nb6 {[%clk 0:02:45.2]} 8. Nc3 {[%clk 0:03:01.5]}
8... Nc6 {[%clk 0:02:45.8]} 9. e3 {[%clk 0:03:01.9]} 9... e5 {[%clk 0:02:44.2]}
10. d5 {[%clk 0:03:01.7]} 10... Na5 {[%clk 0:02:41.9]} 11. e4 {[%clk 0:03:01.7]}
11... c6 {[%clk 0:02:42.2]} 12. Bg5 {[%clk 0:02:56.3]} 12... f6 {[%clk
0:02:37.4]} 13. Be3 {[%clk 0:02:56.7]} 13... Nac4 {[%clk 0:02:34.6]} 14. Bc1
{[%clk 0:02:57.2]} 14... cxd5 {[%clk 0:02:32]} 15. exd5 {[%clk 0:02:58.1]} 15...
Nd6 {[%clk 0:02:31.6]} 16. b3 {[%clk 0:02:57.8]} 16... e4 {[%clk 0:02:26.4]} 17.
Nd4 {[%clk 0:02:57.2]} 17... f5 {[%clk 0:02:27]} 18. Bb2 {[%clk 0:02:56.2]}
18... Re8 {[%clk 0:02:24.4]} 19. Rc1 {[%clk 0:02:50.9]} 19... Bd7 {[%clk
0:02:10.4]} 20. Qd2 {[%clk 0:02:48.3]} 20... Nf7 {[%clk 0:02:07.9]} 21. Rfd1
{[%clk 0:02:44.4]} 21... Bh6 {[%clk 0:02:03.3]} 22. Qe2 {[%clk 0:02:35.1]} 22...
Bxc1 {[%clk 0:02:04.2]} 23. Rxc1 {[%clk 0:02:35.2]} 23... Ne5 {[%clk 0:02:03.8]}
24. Ncb5 {[%clk 0:02:33.3]} 24... Rc8 {[%clk 0:02:02]} 25. Rxc8 {[%clk
0:02:30.9]} 25... Nxc8 {[%clk 0:02:02.9]} 26. h4 {[%clk 0:02:22.6]} 26... Qb6
{[%clk 0:02:01.4]} 27. h5 {[%clk 0:02:16.5]} 27... Nd3 {[%clk 0:02:01.1]} 28. h6
{[%clk 0:02:13.2]} 28... a6 {[%clk 0:01:58.1]} 29. Na3 {[%clk 0:02:10.9]} 29...
Nd6 {[%clk 0:01:55.5]} 30. Qc2 {[%clk 0:02:05.6]} 30... Rc8 {[%clk 0:01:53.4]}
31. Nc4 {[%clk 0:01:53.3]} 31... Nxc4 {[%clk 0:01:51.7]} 32. Nc6 {[%clk
0:01:48.5]} 32... Bxc6 {[%clk 0:01:41.5]} 33. bxc4 {[%clk 0:01:46.8]} 33... Qxb2
{[%clk 0:01:40.1]} 34. Qd1 {[%clk 0:01:40.1]} 34... Qxf2+ {[%clk 0:01:38.6]} 35.
Kh2 {[%clk 0:01:41]} 35... Bd7 {[%clk 0:01:35.3]} 36. Qb3 {[%clk 0:01:39.6]}
36... f4 {[%clk 0:01:31.6]} 37. Qxb7 {[%clk 0:01:38.2]} 37... Qxg3+ {[%clk
0:01:30.1]} 38. Kh1 {[%clk 0:01:38.3]} 38... f3 {[%clk 0:01:26.6]} 39. Bxf3
{[%clk 0:01:37.5]} 39... Nf2# {[%clk 0:01:26.6]} 0-1

[Event "*** Titled Tuesday Blitz"]
[Site "Chess.com"]
[Date "2020.10.27"]
[Round "10"]
[White "Beca95"]
[Black "Semen_Khanin"]
[Result "1-0"]
[WhiteElo "2924"]
[BlackElo "2772"]
[TimeControl "180+1"]
[EndTime "11:53:58 PDT"]
[Termination "Beca95 won by resignation"]

1. e3 {[%clk 0:03:00.9]} 1... e5 {[%clk 0:02:59.1]} 2. c4 {[%clk 0:03:01.1]}
2... g6 {[%clk 0:02:57.4]} 3. h4 {[%clk 0:02:59.7]} 3... h5 {[%clk 0:02:54.7]}
4. Nf3 {[%clk 0:02:58.7]} 4... Bg7 {[%clk 0:02:53.7]} 5. Nc3 {[%clk 0:02:58.1]}
5... d6 {[%clk 0:02:50.1]} 6. b3 {[%clk 0:02:57.9]} 6... Nf6 {[%clk 0:02:48.3]}
7. Bb2 {[%clk 0:02:58.2]} 7... O-O {[%clk 0:02:47]} 8. Ng5 {[%clk 0:02:58.4]}
8... Nh7 {[%clk 0:02:42.7]} 9. Nxh7 {[%clk 0:02:57]} 9... Kxh7 {[%clk 0:02:43]}
10. Be2 {[%clk 0:02:57.1]} 10... f5 {[%clk 0:02:43.6]} 11. Qc2 {[%clk
0:02:54.4]} 11... Nc6 {[%clk 0:02:42]} 12. a3 {[%clk 0:02:52.6]} 12... a5 {[%clk
0:02:40.2]} 13. O-O-O {[%clk 0:02:51.9]} 13... Be6 {[%clk 0:02:39.6]} 14. f3
{[%clk 0:02:46.3]} 14... f4 {[%clk 0:02:22.3]} 15. Bd3 {[%clk 0:02:44.7]} 15...
Bf5 {[%clk 0:02:20.6]} 16. Ne4 {[%clk 0:02:44.4]} 16... Kg8 {[%clk 0:02:13.7]}
17. Kb1 {[%clk 0:02:39.6]} 17... Qe7 {[%clk 0:02:08.6]} 18. Rdg1 {[%clk
0:02:36]} 18... Bh6 {[%clk 0:01:51.2]} 19. g4 {[%clk 0:02:33.7]} 19... hxg4
{[%clk 0:01:38.7]} 20. fxg4 {[%clk 0:02:32.7]} 20... Bxe4 {[%clk 0:01:25.7]} 21.
Bxe4 {[%clk 0:02:33.6]} 21... fxe3 {[%clk 0:01:24.2]} 22. g5 {[%clk 0:02:33.8]}
22... Bg7 {[%clk 0:00:54.1]} 23. Bd5+ {[%clk 0:02:32.8]} 23... Rf7 {[%clk
0:00:54.6]} 24. h5 {[%clk 0:02:31.9]} 24... Kf8 {[%clk 0:00:54.5]} 25. dxe3
{[%clk 0:02:30.5]} 25... Rf5 {[%clk 0:00:51.1]} 26. hxg6 {[%clk 0:02:22.2]}
26... Rxg5 {[%clk 0:00:48.4]} 27. Rf1+ {[%clk 0:02:14.1]} 27... Ke8 {[%clk
0:00:48.6]} 28. Rf7 {[%clk 0:02:14]} 28... Kd7 {[%clk 0:00:46.9]} 29. Rh7 {[%clk
0:02:03.4]} 29... Rg1+ {[%clk 0:00:43.9]} 30. Bc1 {[%clk 0:02:03.5]} 30... Rf8
{[%clk 0:00:31.4]} 31. Rhxg7 {[%clk 0:02:01.7]} 1-0

[Event "*** Titled Tuesday Blitz"]
[Site "Chess.com"]
[Date "2020.10.27"]
[Round "10"]
[White "Iskusnyh"]
[Black "GMJustin"]
[Result "1-0"]
[WhiteElo "2578"]
[BlackElo "2333"]
[TimeControl "180+1"]
[EndTime "11:54:09 PDT"]
[Termination "Iskusnyh won by resignation"]

1. d4 {[%clk 0:03:00.9]} 1... Nf6 {[%clk 0:02:52.5]} 2. c4 {[%clk 0:03:00.6]}
2... e6 {[%clk 0:02:49.8]} 3. g3 {[%clk 0:03:00.6]} 3... d5 {[%clk 0:02:47.1]}
4. Nf3 {[%clk 0:03:00.6]} 4... Be7 {[%clk 0:02:44.5]} 5. Bg2 {[%clk 0:03:00.5]}
5... O-O {[%clk 0:02:44]} 6. O-O {[%clk 0:03:01.1]} 6... dxc4 {[%clk 0:02:43.8]}
7. Qa4 {[%clk 0:03:01.5]} 7... a6 {[%clk 0:02:41.7]} 8. Qxc4 {[%clk 0:03:01.8]}
8... b5 {[%clk 0:02:41.7]} 9. Qc2 {[%clk 0:03:02.5]} 9... Bb7 {[%clk 0:02:41.8]}
10. Bd2 {[%clk 0:03:03.1]} 10... Be4 {[%clk 0:02:33.3]} 11. Qc1 {[%clk
0:02:58.7]} 11... Nbd7 {[%clk 0:02:24.6]} 12. Ba5 {[%clk 0:02:55.1]} 12... Ra7
{[%clk 0:01:43.4]} 13. Nbd2 {[%clk 0:02:53.5]} 13... Ba8 {[%clk 0:01:36.6]} 14.
Qc2 {[%clk 0:02:43.2]} 14... Qb8 {[%clk 0:01:32.8]} 15. b4 {[%clk 0:02:37.7]}
15... Nb6 {[%clk 0:01:00.8]} 16. Rac1 {[%clk 0:02:25.7]} 16... Rc8 {[%clk
0:00:37.9]} 17. Ne5 {[%clk 0:02:15.4]} 17... Bxg2 {[%clk 0:00:34.5]} 18. Kxg2
{[%clk 0:02:14.7]} 18... c6 {[%clk 0:00:13.4]} 19. Nxc6 {[%clk 0:01:48.3]} 19...
Qb7 {[%clk 0:00:10.9]} 20. Bxb6 {[%clk 0:01:47.7]} 1-0

[Event "*** Titled Tuesday Blitz"]
[Site "Chess.com"]
[Date "2020.10.27"]
[Round "10"]
[White "reniite"]
[Black "PawnEatingZombie"]
[Result "1-0"]
[WhiteElo "1945"]
[BlackElo "2157"]
[TimeControl "180+1"]
[EndTime "11:54:14 PDT"]
[Termination "reniite won by resignation"]

1. e4 {[%clk 0:03:00.9]} 1... c6 {[%clk 0:02:59.6]} 2. d4 {[%clk 0:03:00.4]}
2... d5 {[%clk 0:03:00]} 3. exd5 {[%clk 0:03:01.3]} 3... cxd5 {[%clk 0:02:59.7]}
4. c4 {[%clk 0:03:01.5]} 4... Nf6 {[%clk 0:02:58.7]} 5. Nf3 {[%clk 0:03:01.9]}
5... g6 {[%clk 0:02:58.1]} 6. Nc3 {[%clk 0:03:00.7]} 6... Bg7 {[%clk 0:02:58]}
7. c5 {[%clk 0:03:01.3]} 7... O-O {[%clk 0:02:57.2]} 8. Ne5 {[%clk 0:02:52]}
8... Nc6 {[%clk 0:02:53.7]} 9. Nxc6 {[%clk 0:02:48.4]} 9... bxc6 {[%clk
0:02:53.7]} 10. Qa4 {[%clk 0:02:47.8]} 10... e5 {[%clk 0:02:40.6]} 11. dxe5
{[%clk 0:02:46.6]} 11... Ng4 {[%clk 0:02:29.9]} 12. Be2 {[%clk 0:02:37.4]} 12...
Nxe5 {[%clk 0:02:27.3]} 13. O-O {[%clk 0:02:33.7]} 13... Bd7 {[%clk 0:02:24.9]}
14. Bf4 {[%clk 0:02:31.1]} 14... Re8 {[%clk 0:02:22.3]} 15. Rad1 {[%clk
0:02:29.9]} 15... Qc8 {[%clk 0:02:03.9]} 16. Ba6 {[%clk 0:02:28.7]} 16... Qc7
{[%clk 0:02:01.6]} 17. Rfe1 {[%clk 0:02:25.9]} 17... Re7 {[%clk 0:01:32.7]} 18.
Re2 {[%clk 0:02:08]} 18... Rae8 {[%clk 0:01:32.3]} 19. Rde1 {[%clk 0:02:07.6]}
19... h6 {[%clk 0:01:30.5]} 20. Bg3 {[%clk 0:01:36.4]} 20... g5 {[%clk
0:01:11.3]} 21. h4 {[%clk 0:01:01.7]} 21... f5 {[%clk 0:01:08.5]} 22. hxg5
{[%clk 0:01:01.3]} 22... hxg5 {[%clk 0:01:09]} 23. f4 {[%clk 0:01:00.7]} 23...
gxf4 {[%clk 0:01:08.1]} 24. Bxf4 {[%clk 0:01:00.8]} 24... Ng6 {[%clk 0:01:01.6]}
25. Bxc7 {[%clk 0:00:59.5]} 1-0

[Event "*** Titled Tuesday Blitz"]
[Site "Chess.com"]
[Date "2020.10.27"]
[Round "10"]
[White "krasavetc"]
[Black "zurzan"]
[Result "1-0"]
[WhiteElo "2286"]
[BlackElo "2050"]
[TimeControl "180+1"]
[EndTime "11:54:20 PDT"]
[Termination "krasavetc won by resignation"]

1. e4 {[%clk 0:03:00.1]} 1... Nf6 {[%clk 0:02:59.2]} 2. Nf3 {[%clk 0:03:01]}
2... Nxe4 {[%clk 0:02:58.6]} 3. Bc4 {[%clk 0:03:00.3]} 3... d5 {[%clk
0:02:57.4]} 4. Bb3 {[%clk 0:03:00.4]} 4... c5 {[%clk 0:02:56.5]} 5. d4 {[%clk
0:02:55.5]} 5... c4 {[%clk 0:02:55.6]} 6. Ba4+ {[%clk 0:02:54.7]} 6... Nc6
{[%clk 0:02:53.7]} 7. Ne5 {[%clk 0:02:53.6]} 7... Bd7 {[%clk 0:02:52.4]} 8. Nxd7
{[%clk 0:02:51.9]} 8... Qxd7 {[%clk 0:02:52.3]} 9. O-O {[%clk 0:02:50]} 9... g6
{[%clk 0:02:51.3]} 10. Nc3 {[%clk 0:02:44.8]} 10... Nxc3 {[%clk 0:02:49]} 11.
bxc3 {[%clk 0:02:43.2]} 11... Bg7 {[%clk 0:02:48.9]} 12. Bf4 {[%clk 0:02:41.8]}
12... O-O {[%clk 0:02:47.2]} 13. Rb1 {[%clk 0:02:33.9]} 13... a6 {[%clk
0:02:46.8]} 14. Rb6 {[%clk 0:02:20.7]} 14... Qf5 {[%clk 0:02:23.9]} 15. Bg3
{[%clk 0:01:54.8]} 15... e5 {[%clk 0:02:07]} 16. Rxb7 {[%clk 0:01:44.8]} 16...
Na5 {[%clk 0:02:03.8]} 17. Rd7 {[%clk 0:01:42]} 17... exd4 {[%clk 0:02:01]} 18.
cxd4 {[%clk 0:01:39.7]} 18... Rfd8 {[%clk 0:01:57]} 19. Rxd8+ {[%clk 0:01:36.6]}
19... Rxd8 {[%clk 0:01:56.4]} 20. Bc7 {[%clk 0:01:37.1]} 20... Rc8 {[%clk
0:01:41.6]} 21. Bxa5 {[%clk 0:01:30.4]} 21... c3 {[%clk 0:01:40.5]} 22. Qf3
{[%clk 0:01:15.9]} 22... Qxf3 {[%clk 0:01:32.4]} 23. gxf3 {[%clk 0:01:14.5]}
23... Bxd4 {[%clk 0:01:33.3]} 24. Bb3 {[%clk 0:01:13]} 24... Rc6 {[%clk
0:01:14.6]} 25. Rd1 {[%clk 0:01:05]} 25... Rf6 {[%clk 0:01:15.5]} 26. Rxd4
{[%clk 0:00:58.5]} 26... Rxf3 {[%clk 0:01:16.4]} 27. Bxd5 {[%clk 0:00:57.4]}
27... Rf5 {[%clk 0:01:13.1]} 28. Bxc3 {[%clk 0:00:54]} 1-0

[Event "*** Titled Tuesday Blitz"]
[Site "Chess.com"]
[Date "2020.10.27"]
[Round "10"]
[White "Borsuk_Konstantin"]
[Black "Sankalp_Gupta2003"]
[Result "0-1"]
[WhiteElo "2579"]
[BlackElo "2718"]
[TimeControl "180+1"]
[EndTime "11:54:29 PDT"]
[Termination "Sankalp_Gupta2003 won by resignation"]

1. d4 {[%clk 0:03:00.9]} 1... Nf6 {[%clk 0:03:00]} 2. c4 {[%clk 0:03:00.7]} 2...
g6 {[%clk 0:02:57.2]} 3. Nc3 {[%clk 0:02:58.1]} 3... Bg7 {[%clk 0:02:56.5]} 4.
e4 {[%clk 0:02:55.2]} 4... d6 {[%clk 0:02:56.7]} 5. f3 {[%clk 0:02:55.2]} 5...
O-O {[%clk 0:02:52.1]} 6. Be3 {[%clk 0:02:55.3]} 6... c5 {[%clk 0:02:49.9]} 7.
dxc5 {[%clk 0:02:55.2]} 7... dxc5 {[%clk 0:02:49.1]} 8. Qxd8 {[%clk 0:02:55.2]}
8... Rxd8 {[%clk 0:02:50]} 9. Bxc5 {[%clk 0:02:55.1]} 9... Nc6 {[%clk
0:02:50.5]} 10. Nd5 {[%clk 0:02:54.2]} 10... e6 {[%clk 0:02:30.8]} 11. Ne7+
{[%clk 0:02:39.9]} 11... Nxe7 {[%clk 0:02:24.8]} 12. Bxe7 {[%clk 0:02:40]} 12...
Rd7 {[%clk 0:02:25.7]} 13. Ba3 {[%clk 0:02:38]} 13... b6 {[%clk 0:02:21.4]} 14.
Rd1 {[%clk 0:02:25.7]} 14... Ba6 {[%clk 0:02:21]} 15. Rxd7 {[%clk 0:01:50.6]}
15... Nxd7 {[%clk 0:02:21.9]} 16. f4 {[%clk 0:01:40.5]} 16... Bb7 {[%clk
0:02:12]} 17. e5 {[%clk 0:01:39.7]} 17... f6 {[%clk 0:02:10.3]} 18. exf6 {[%clk
0:01:39.5]} 18... Nxf6 {[%clk 0:02:11.1]} 19. Nf3 {[%clk 0:01:31.6]} 19... Nh5
{[%clk 0:02:07.3]} 20. Bd6 {[%clk 0:01:23.3]} 20... Bxf3 {[%clk 0:02:03.8]} 21.
gxf3 {[%clk 0:01:22.7]} 21... Bxb2 {[%clk 0:02:04.5]} 22. Bh3 {[%clk 0:01:17.8]}
22... Kf7 {[%clk 0:02:02.6]} 23. Kf2 {[%clk 0:00:28.1]} 23... Rd8 {[%clk
0:02:01.6]} 24. Be5 {[%clk 0:00:20.6]} 24... Bxe5 {[%clk 0:02:00.3]} 25. fxe5
{[%clk 0:00:20.6]} 25... Nf4 {[%clk 0:02:00.7]} 26. Bf1 {[%clk 0:00:18.3]} 26...
Rd1 {[%clk 0:01:59.2]} 27. h4 {[%clk 0:00:16.8]} 27... Ra1 {[%clk 0:01:58.2]}
28. Ke3 {[%clk 0:00:16.1]} 28... Nh5 {[%clk 0:01:56.1]} 29. Bg2 {[%clk
0:00:15.5]} 29... Rxa2 {[%clk 0:01:54.4]} 30. Bh3 {[%clk 0:00:15.8]} 30... Ra3+
{[%clk 0:01:51]} 31. Ke4 {[%clk 0:00:12.2]} 31... Ng3+ {[%clk 0:01:51]} 0-1

[Event "*** Titled Tuesday Blitz"]
[Site "Chess.com"]
[Date "2020.10.27"]
[Round "10"]
[White "Bastiandash"]
[Black "Quiet_Desperation"]
[Result "1-0"]
[WhiteElo "2333"]
[BlackElo "2035"]
[TimeControl "180+1"]
[EndTime "11:54:31 PDT"]
[Termination "Bastiandash won by resignation"]

1. e4 {[%clk 0:03:00.9]} 1... e6 {[%clk 0:02:58.7]} 2. d4 {[%clk 0:02:52.9]}
2... d5 {[%clk 0:02:57.7]} 3. Bd3 {[%clk 0:02:53.8]} 3... Nf6 {[%clk 0:02:57.3]}
4. e5 {[%clk 0:02:49]} 4... Nfd7 {[%clk 0:02:55.7]} 5. c3 {[%clk 0:02:49.9]}
5... c5 {[%clk 0:02:51.6]} 6. Ne2 {[%clk 0:02:40.5]} 6... Nc6 {[%clk 0:02:51.8]}
7. O-O {[%clk 0:02:40.1]} 7... Be7 {[%clk 0:02:49.2]} 8. Kh1 {[%clk 0:02:31.9]}
8... O-O {[%clk 0:02:22.7]} 9. f4 {[%clk 0:02:29.6]} 9... f5 {[%clk 0:02:20]}
10. exf6 {[%clk 0:02:22.3]} 10... Nxf6 {[%clk 0:02:19.9]} 11. Be3 {[%clk
0:02:16.5]} 11... Ng4 {[%clk 0:02:17.4]} 12. Bg1 {[%clk 0:02:14.9]} 12... cxd4
{[%clk 0:02:16.2]} 13. Nxd4 {[%clk 0:02:05.4]} 13... Nxd4 {[%clk 0:02:15.1]} 14.
Bxd4 {[%clk 0:01:57.7]} 14... e5 {[%clk 0:01:41.6]} 15. fxe5 {[%clk 0:01:47.1]}
15... Be6 {[%clk 0:01:33.8]} 16. Nd2 {[%clk 0:01:43.7]} 16... Bg5 {[%clk
0:01:31.1]} 17. Nf3 {[%clk 0:01:33.9]} 17... Bf4 {[%clk 0:01:29.4]} 18. Qc2
{[%clk 0:01:06.8]} 18... Nxh2 {[%clk 0:01:14.5]} 19. Bxh7+ {[%clk 0:00:58.4]}
19... Kh8 {[%clk 0:01:14.5]} 20. Qg6 {[%clk 0:00:36]} 20... Qh4 {[%clk
0:01:09.1]} 21. Nxh4 {[%clk 0:00:33.6]} 1-0

[Event "*** Titled Tuesday Blitz"]
[Site "Chess.com"]
[Date "2020.10.27"]
[Round "10"]
[White "svilson23"]
[Black "oogee"]
[Result "1-0"]
[WhiteElo "2393"]
[BlackElo "2216"]
[TimeControl "180+1"]
[EndTime "11:54:34 PDT"]
[Termination "svilson23 won by resignation"]

1. e4 {[%clk 0:03:00.9]} 1... c5 {[%clk 0:02:56.3]} 2. Nf3 {[%clk 0:02:58.5]}
2... d6 {[%clk 0:02:56.2]} 3. Bb5+ {[%clk 0:02:56.8]} 3... Bd7 {[%clk
0:02:55.8]} 4. Bxd7+ {[%clk 0:02:56.3]} 4... Qxd7 {[%clk 0:02:55.9]} 5. c4
{[%clk 0:02:55.9]} 5... Nf6 {[%clk 0:02:54.7]} 6. Nc3 {[%clk 0:02:46.3]} 6... g6
{[%clk 0:02:54.6]} 7. d4 {[%clk 0:02:39.4]} 7... cxd4 {[%clk 0:02:53.8]} 8. Nxd4
{[%clk 0:02:40]} 8... Bg7 {[%clk 0:02:54.4]} 9. f3 {[%clk 0:02:39.4]} 9... O-O
{[%clk 0:02:54.4]} 10. Be3 {[%clk 0:02:39]} 10... Nc6 {[%clk 0:02:51.7]} 11. O-O
{[%clk 0:02:35.8]} 11... Rfc8 {[%clk 0:02:46.5]} 12. b3 {[%clk 0:02:30.3]} 12...
Qc7 {[%clk 0:02:30.2]} 13. Qd2 {[%clk 0:02:28.1]} 13... Qa5 {[%clk 0:02:24.3]}
14. Rfd1 {[%clk 0:02:27.5]} 14... Nd7 {[%clk 0:02:02.6]} 15. Nde2 {[%clk
0:02:13.1]} 15... Nce5 {[%clk 0:01:48.3]} 16. Rab1 {[%clk 0:02:08.7]} 16...
Nxf3+ {[%clk 0:01:42]} 17. gxf3 {[%clk 0:02:07.2]} 17... Qh5 {[%clk 0:01:41.8]}
18. Kg2 {[%clk 0:01:54.6]} 18... Ne5 {[%clk 0:01:38.9]} 19. Rf1 {[%clk
0:01:49.3]} 19... f5 {[%clk 0:01:25.7]} 20. Ng3 {[%clk 0:01:48.3]} 20... Qh4
{[%clk 0:01:21.4]} 21. Bg5 {[%clk 0:01:41.5]} 21... Nxf3 {[%clk 0:01:11.7]} 22.
Rxf3 {[%clk 0:01:37.5]} 22... Qg4 {[%clk 0:00:57.3]} 23. h3 {[%clk 0:01:19.6]}
23... fxe4 {[%clk 0:00:56.4]} 24. hxg4 {[%clk 0:01:18.5]} 24... exf3+ {[%clk
0:00:56.5]} 25. Kf2 {[%clk 0:01:12]} 25... Rc5 {[%clk 0:00:48.7]} 26. Nd5 {[%clk
0:01:11.4]} 26... e6 {[%clk 0:00:47.7]} 27. Ne4 {[%clk 0:01:07.3]} 1-0

[Event "*** Titled Tuesday Blitz"]
[Site "Chess.com"]
[Date "2020.10.27"]
[Round "10"]
[White "MasterKroket"]
[Black "queen_iryna"]
[Result "1-0"]
[WhiteElo "2423"]
[BlackElo "2304"]
[TimeControl "180+1"]
[EndTime "11:54:39 PDT"]
[Termination "MasterKroket won on time"]

1. d4 {[%clk 0:03:00.9]} 1... d6 {[%clk 0:02:59.3]} 2. c4 {[%clk 0:03:01.4]}
2... e5 {[%clk 0:02:58.8]} 3. e3 {[%clk 0:02:58.9]} 3... Nd7 {[%clk 0:02:44.2]}
4. Nc3 {[%clk 0:02:57.6]} 4... g6 {[%clk 0:02:42.1]} 5. Nf3 {[%clk 0:02:57.1]}
5... Bg7 {[%clk 0:02:41.7]} 6. Be2 {[%clk 0:02:57.1]} 6... f5 {[%clk 0:02:40.2]}
7. dxe5 {[%clk 0:02:53.7]} 7... dxe5 {[%clk 0:02:34.5]} 8. O-O {[%clk
0:02:50.1]} 8... Ngf6 {[%clk 0:02:31]} 9. e4 {[%clk 0:02:48.1]} 9... f4 {[%clk
0:02:24.9]} 10. c5 {[%clk 0:02:42.9]} 10... O-O {[%clk 0:02:17.8]} 11. Bc4+
{[%clk 0:02:42]} 11... Kh8 {[%clk 0:02:17.1]} 12. Ng5 {[%clk 0:02:42.2]} 12...
Qe7 {[%clk 0:02:07.5]} 13. b4 {[%clk 0:02:31.9]} 13... h6 {[%clk 0:02:02.4]} 14.
Ne6 {[%clk 0:02:30.3]} 14... c6 {[%clk 0:01:20.8]} 15. Nxf8 {[%clk 0:02:27.1]}
15... Qxf8 {[%clk 0:01:20.8]} 16. Bb2 {[%clk 0:02:17.5]} 16... Qe8 {[%clk
0:01:04.2]} 17. Qe2 {[%clk 0:02:04.9]} 17... Nf8 {[%clk 0:01:03.7]} 18. Rfd1
{[%clk 0:02:03.9]} 18... f3 {[%clk 0:01:00.8]} 19. Qxf3 {[%clk 0:01:59.3]} 19...
Bg4 {[%clk 0:01:00.2]} 20. Qd3 {[%clk 0:01:55.4]} 20... Bxd1 {[%clk 0:00:59.7]}
21. Rxd1 {[%clk 0:01:56.3]} 21... Ne6 {[%clk 0:00:53.3]} 22. g3 {[%clk
0:01:46.8]} 22... Rd8 {[%clk 0:00:38.2]} 23. Qf1 {[%clk 0:01:44.8]} 23... Nd4
{[%clk 0:00:17.2]} 24. Kg2 {[%clk 0:01:39.3]} 1-0

[Event "*** Titled Tuesday Blitz"]
[Site "Chess.com"]
[Date "2020.10.27"]
[Round "10"]
[White "deep306"]
[Black "Qvalda"]
[Result "1-0"]
[WhiteElo "2581"]
[BlackElo "2389"]
[TimeControl "180+1"]
[EndTime "11:54:44 PDT"]
[Termination "deep306 won by resignation"]

1. e4 {[%clk 0:03:00.9]} 1... g6 {[%clk 0:02:45.9]} 2. Nc3 {[%clk 0:02:59.6]}
2... Bg7 {[%clk 0:02:45.1]} 3. h4 {[%clk 0:03:00.2]} 3... h5 {[%clk 0:02:42.3]}
4. Bc4 {[%clk 0:02:59.7]} 4... d6 {[%clk 0:02:39]} 5. d3 {[%clk 0:03:00]} 5...
e6 {[%clk 0:02:39.1]} 6. Nf3 {[%clk 0:03:00]} 6... a6 {[%clk 0:02:36.6]} 7. Bb3
{[%clk 0:02:59.8]} 7... b6 {[%clk 0:02:35.9]} 8. Be3 {[%clk 0:02:57.5]} 8... Bb7
{[%clk 0:02:35.5]} 9. Qd2 {[%clk 0:02:57.8]} 9... Nd7 {[%clk 0:02:35.6]} 10. d4
{[%clk 0:02:52.8]} 10... Ne7 {[%clk 0:02:33.5]} 11. Ng5 {[%clk 0:02:47.5]} 11...
d5 {[%clk 0:02:29.4]} 12. exd5 {[%clk 0:02:32.3]} 12... exd5 {[%clk 0:02:26.5]}
13. Ne2 {[%clk 0:02:31.5]} 13... Nf6 {[%clk 0:02:19.8]} 14. Nf4 {[%clk
0:02:29.9]} 14... O-O {[%clk 0:02:12.6]} 15. O-O-O {[%clk 0:02:27]} 15... a5
{[%clk 0:02:07.4]} 16. a4 {[%clk 0:02:26.1]} 16... b5 {[%clk 0:01:57.5]} 17. f3
{[%clk 0:02:21.8]} 17... Bc6 {[%clk 0:01:53.4]} 18. axb5 {[%clk 0:02:20.2]}
18... Bxb5 {[%clk 0:01:54.3]} 19. g4 {[%clk 0:02:16.5]} 19... a4 {[%clk
0:01:46.4]} 20. Ba2 {[%clk 0:02:14.7]} 20... a3 {[%clk 0:01:45.3]} 21. b3 {[%clk
0:02:14.1]} 21... hxg4 {[%clk 0:01:22.2]} 22. h5 {[%clk 0:02:13]} 22... Bh6
{[%clk 0:01:07.3]} 23. Nxf7 {[%clk 0:02:01.8]} 23... Rxf7 {[%clk 0:00:57.8]} 24.
hxg6 {[%clk 0:02:01.7]} 24... Rg7 {[%clk 0:00:40.3]} 25. Rxh6 {[%clk 0:02:00.5]}
25... Nf5 {[%clk 0:00:36.2]} 26. Ne6 {[%clk 0:01:55.9]} 26... Qe7 {[%clk
0:00:33.8]} 27. Nxg7 {[%clk 0:01:47.2]} 27... Qxe3 {[%clk 0:00:31.3]} 28. Nxf5
{[%clk 0:01:46]} 28... Qxd2+ {[%clk 0:00:24.1]} 29. Kxd2 {[%clk 0:01:45.9]}
29... gxf3 {[%clk 0:00:22.3]} 30. Rdh1 {[%clk 0:01:45.7]} 30... Ne4+ {[%clk
0:00:07.1]} 31. Ke3 {[%clk 0:01:44.5]} 1-0